[Event "Titled Tuesday Blitz December 20 Early 2022"]
[White "Zahid, Sanatan"]
[Black "Timofeeva, Galina"]
[WhiteFideId "10201963"]
[BlackFideId "14106175"]
[WhiteElo "1930"]
[BlackElo "1955"]
[Result "0-1"]
[Round "08"]
[TimeControl "180+2"]
[Date "2022.12.20"]
[WhiteClock "0:00:10"]
[BlackClock "0:00:09"]

1. d4 {[%clk 0:03:00]}  d5 {[%clk 0:02:59]} 2. Nc3 {[%clk 0:03:00]}  Nf6 {[%clk 0:02:58]} 3. Bf4 {[%clk 0:03:00]}  e6 {[%clk 0:02:58]} 4. Nb5 {[%clk 0:03:00]}  Na6 {[%clk 0:02:57]} 5. e3 {[%clk 0:03:00]}  Be7 {[%clk 0:02:54]} 6. Nf3 {[%clk 0:02:59]}  O-O {[%clk 0:02:53]} 7. Be2 {[%clk 0:02:59]}  c6 {[%clk 0:02:50]} 8. Nc3 {[%clk 0:03:00]}  b6 {[%clk 0:02:49]} 9. Ne5 {[%clk 0:02:58]}  Nb8 {[%clk 0:02:48]} 10. g4 {[%clk 0:02:58]}  Nfd7 {[%clk 0:02:42]} 11. h4 {[%clk 0:02:57]}  Nxe5 {[%clk 0:02:41]} 12. dxe5 {[%clk 0:02:57]}  c5 {[%clk 0:02:39]} 13. g5 {[%clk 0:02:56]}  Bb7 {[%clk 0:02:39]} 14. Rg1 {[%clk 0:02:53]}  d4 {[%clk 0:02:36]} 15. Nb5 {[%clk 0:02:50]}  Nc6 {[%clk 0:02:34]} 16. Bd3 {[%clk 0:02:35]}  g6 {[%clk 0:02:29]} 17. c3 {[%clk 0:02:32]}  a6 {[%clk 0:02:27]} 18. Nd6 {[%clk 0:02:32]}  Bxd6 {[%clk 0:02:27]} 19. exd6 {[%clk 0:02:31]}  e5 {[%clk 0:02:27]} 20. Bg3 {[%clk 0:02:32]}  Qxd6 {[%clk 0:02:26]} 21. h5 {[%clk 0:02:31]}  Rad8 {[%clk 0:02:22]} 22. hxg6 {[%clk 0:02:31]}  hxg6 {[%clk 0:02:21]} 23. Qg4 {[%clk 0:02:01]}  dxc3 {[%clk 0:02:13]} 24. O-O-O {[%clk 0:02:01]}  c4 {[%clk 0:01:48]} 25. Qxc4 {[%clk 0:01:47]}  cxb2+ {[%clk 0:01:18]} 26. Kb1 {[%clk 0:01:46]}  Qb4 {[%clk 0:01:12]} 27. Qxb4 {[%clk 0:01:32]}  Nxb4 {[%clk 0:01:12]} 28. Be2 {[%clk 0:01:32]}  Rfe8 {[%clk 0:00:48]} 29. Kxb2 {[%clk 0:01:30]}  Be4 {[%clk 0:00:37]} 30. Bc4 {[%clk 0:01:14]}  Bd5 {[%clk 0:00:32]} 31. Be2 {[%clk 0:01:09]}  Bxa2 {[%clk 0:00:29]} 32. Ka3 {[%clk 0:00:59]}  a5 {[%clk 0:00:29]} 33. Rxd8 {[%clk 0:01:00]}  Rxd8 {[%clk 0:00:29]} 34. Bxe5 {[%clk 0:01:00]}  Bd5 {[%clk 0:00:24]} 35. Rg3 {[%clk 0:00:57]}  Kf8 {[%clk 0:00:23]} 36. Bf6 {[%clk 0:00:56]}  Rc8 {[%clk 0:00:22]} 37. Rh3 {[%clk 0:00:55]}  Ke8 {[%clk 0:00:21]} 38. e4 {[%clk 0:00:53]}  Bxe4 {[%clk 0:00:13]} 39. Bb5+ {[%clk 0:00:51]}  Bc6 {[%clk 0:00:13]} 40. Bc4 {[%clk 0:00:50]}  Kd7 {[%clk 0:00:12]} 41. Bxf7 {[%clk 0:00:50]}  Be4 {[%clk 0:00:12]} 42. Rh7 {[%clk 0:00:48]}  Kd6 {[%clk 0:00:12]} 43. Bb3 {[%clk 0:00:47]}  Nc2+ {[%clk 0:00:12]} 44. Kb2 {[%clk 0:00:47]}  Nb4 {[%clk 0:00:12]} 45. Be7+ {[%clk 0:00:47]}  Ke5 {[%clk 0:00:12]} 46. Bf6+ {[%clk 0:00:42]}  Kf4 {[%clk 0:00:12]} 47. Rf7 {[%clk 0:00:41]}  Bf5 {[%clk 0:00:12]} 48. Bd4 {[%clk 0:00:39]}  Nd3+ {[%clk 0:00:12]} 49. Ka3 {[%clk 0:00:39]}  Ke4 {[%clk 0:00:12]} 50. Bxb6 {[%clk 0:00:39]}  Rc3 {[%clk 0:00:10]} 51. Re7+ {[%clk 0:00:37]}  Kf4 {[%clk 0:00:10]} 52. Bxa5 {[%clk 0:00:37]}  Rc8 {[%clk 0:00:09]} 53. Bd2+ {[%clk 0:00:37]}  Kf3 {[%clk 0:00:08]} 54. Bd5+ {[%clk 0:00:34]}  Kxf2 {[%clk 0:00:08]} 55. Be3+ {[%clk 0:00:34]}  Kg3 {[%clk 0:00:08]} 56. Kb3 {[%clk 0:00:32]}  Kg4 {[%clk 0:00:09]} 57. Rf7 {[%clk 0:00:30]}  Rd8 {[%clk 0:00:09]} 58. Bb7 {[%clk 0:00:23]}  Ne5 {[%clk 0:00:09]} 59. Re7 {[%clk 0:00:23]}  Rd3+ {[%clk 0:00:08]} 60. Kc2 {[%clk 0:00:21]}  Rxe3+ {[%clk 0:00:08]} 61. Kd1 {[%clk 0:00:19]}  Kf4 {[%clk 0:00:08]} 62. Ba8 {[%clk 0:00:19]}  Nc4 {[%clk 0:00:08]} 63. Rc7 {[%clk 0:00:18]}  Bd3 {[%clk 0:00:07]} 64. Bd5 {[%clk 0:00:17]}  Ne5 {[%clk 0:00:07]} 65. Rc5 {[%clk 0:00:16]}  Bf5 {[%clk 0:00:07]} 66. Ba2 {[%clk 0:00:15]}  Rd3+ {[%clk 0:00:07]} 67. Ke2 {[%clk 0:00:15]}  Ra3 {[%clk 0:00:07]} 68. Bd5 {[%clk 0:00:14]}  Ng4 {[%clk 0:00:07]} 69. Kd2 {[%clk 0:00:12]}  Kxg5 {[%clk 0:00:07]} 70. Be6 {[%clk 0:00:13]}  Nf6 {[%clk 0:00:08]} 71. Ke2 {[%clk 0:00:12]}  Ne4 {[%clk 0:00:08]} 72. Re5 {[%clk 0:00:09]}  Kf4 {[%clk 0:00:08]} 73. Bxf5 {[%clk 0:00:09]}  Kxe5 {[%clk 0:00:08]} 74. Bxg6 {[%clk 0:00:09]}  Kd4 {[%clk 0:00:08]} 75. Bh7 {[%clk 0:00:10]}  Ra2+ {[%clk 0:00:08]} 76. Kf1 {[%clk 0:00:10]}  Ke3 {[%clk 0:00:09]} 77. Kg1 {[%clk 0:00:09]}  Re2 {[%clk 0:00:08]} 78. Bg8 {[%clk 0:00:09]}  Nd2 {[%clk 0:00:08]} 79. Bd5 {[%clk 0:00:09]}  Nf3+ {[%clk 0:00:08]} 80. Bxf3 {[%clk 0:00:09]}  Kxf3 {[%clk 0:00:08]} 81. Kh1 {[%clk 0:00:09]}  Kg3 {[%clk 0:00:08]} 82. Kg1 {[%clk 0:00:10]}  Re1# {[%clk 0:00:09]} 0-1


[Site "https://www.chess.com"]

[Event "Titled Tuesday Blitz December 20 Early 2022"]
[White "Zampronha, Wladimir Camilo"]
[Black "Rosenberg, Sergei G"]
[WhiteFideId "2103087"]
[BlackFideId "4102444"]
[WhiteElo "2176"]
[BlackElo "2418"]
[Result "0-1"]
[Round "08"]
[TimeControl "180+2"]
[Date "2022.12.20"]
[WhiteClock "0:00:05"]
[BlackClock "0:00:08"]

1. e4 {[%clk 0:02:57]}  e5 {[%clk 0:02:56]} 2. Nf3 {[%clk 0:02:57]}  Nc6 {[%clk 0:02:47]} 3. d4 {[%clk 0:02:58]}  exd4 {[%clk 0:02:47]} 4. Nxd4 {[%clk 0:02:58]}  Nf6 {[%clk 0:02:47]} 5. Nxc6 {[%clk 0:02:57]}  bxc6 {[%clk 0:02:48]} 6. e5 {[%clk 0:02:57]}  Qe7 {[%clk 0:02:48]} 7. Qe2 {[%clk 0:02:56]}  Nd5 {[%clk 0:02:49]} 8. c4 {[%clk 0:02:56]}  Nb6 {[%clk 0:02:48]} 9. Nc3 {[%clk 0:02:55]}  Qe6 {[%clk 0:02:46]} 10. Qe4 {[%clk 0:02:55]}  d5 {[%clk 0:02:45]} 11. exd6 {[%clk 0:02:52]}  Qxe4+ {[%clk 0:02:45]} 12. Nxe4 {[%clk 0:02:51]}  cxd6 {[%clk 0:02:45]} 13. Be2 {[%clk 0:02:48]}  d5 {[%clk 0:02:39]} 14. cxd5 {[%clk 0:02:48]}  Bb4+ {[%clk 0:02:36]} 15. Bd2 {[%clk 0:02:46]}  Bxd2+ {[%clk 0:02:36]} 16. Nxd2 {[%clk 0:02:46]}  Nxd5 {[%clk 0:02:28]} 17. O-O-O {[%clk 0:02:42]}  O-O {[%clk 0:02:25]} 18. Nf3 {[%clk 0:02:30]}  Nf4 {[%clk 0:02:10]} 19. Bf1 {[%clk 0:02:27]}  Bg4 {[%clk 0:02:07]} 20. Rd4 {[%clk 0:02:26]}  Bxf3 {[%clk 0:01:58]} 21. Rxf4 {[%clk 0:02:26]}  Bd5 {[%clk 0:01:57]} 22. Bc4 {[%clk 0:02:20]}  Bxg2 {[%clk 0:01:43]} 23. Rg1 {[%clk 0:02:04]}  Bd5 {[%clk 0:01:43]} 24. Bxd5 {[%clk 0:02:04]}  cxd5 {[%clk 0:01:43]} 25. Rg5 {[%clk 0:02:03]}  Rac8+ {[%clk 0:01:26]} 26. Kd2 {[%clk 0:02:04]}  Rc4 {[%clk 0:01:23]} 27. Rxc4 {[%clk 0:02:01]}  dxc4 {[%clk 0:01:23]} 28. Ra5 {[%clk 0:01:59]}  Rb8 {[%clk 0:01:18]} 29. Kc3 {[%clk 0:01:57]}  Rb7 {[%clk 0:01:16]} 30. Kxc4 {[%clk 0:01:53]}  Rxb2 {[%clk 0:01:14]} 31. Rxa7 {[%clk 0:01:52]}  g5 {[%clk 0:01:14]} 32. a4 {[%clk 0:01:24]}  Rxf2 {[%clk 0:01:12]} 33. a5 {[%clk 0:01:19]}  Rxh2 {[%clk 0:01:12]} 34. Re7 {[%clk 0:01:11]}  Ra2 {[%clk 0:01:07]} 35. Kb5 {[%clk 0:01:08]}  g4 {[%clk 0:01:06]} 36. Re4 {[%clk 0:01:05]}  h5 {[%clk 0:00:51]} 37. Re5 {[%clk 0:01:04]}  Kg7 {[%clk 0:00:36]} 38. Rxh5 {[%clk 0:01:04]}  Kg6 {[%clk 0:00:37]} 39. Rh8 {[%clk 0:00:58]}  Kg5 {[%clk 0:00:35]} 40. a6 {[%clk 0:00:57]}  g3 {[%clk 0:00:33]} 41. Kb6 {[%clk 0:00:52]}  f5 {[%clk 0:00:31]} 42. a7 {[%clk 0:00:52]}  f4 {[%clk 0:00:31]} 43. a8=Q {[%clk 0:00:50]}  Rxa8 {[%clk 0:00:30]} 44. Rxa8 {[%clk 0:00:49]}  f3 {[%clk 0:00:31]} 45. Kc5 {[%clk 0:00:33]}  f2 {[%clk 0:00:31]} 46. Rf8 {[%clk 0:00:31]}  g2 {[%clk 0:00:30]} 47. Rg8+ {[%clk 0:00:29]}  Kf4 {[%clk 0:00:27]} 48. Rxg2 {[%clk 0:00:29]}  f1=Q {[%clk 0:00:27]} 49. Rc2 {[%clk 0:00:22]}  Qd3 {[%clk 0:00:20]} 50. Rc4+ {[%clk 0:00:20]}  Ke5 {[%clk 0:00:20]} 51. Kb4 {[%clk 0:00:21]}  Kd5 {[%clk 0:00:19]} 52. Rc3 {[%clk 0:00:21]}  Qd4+ {[%clk 0:00:19]} 53. Kb3 {[%clk 0:00:22]}  Qd1+ {[%clk 0:00:18]} 54. Kb4 {[%clk 0:00:19]}  Qb1+ {[%clk 0:00:18]} 55. Rb3 {[%clk 0:00:18]}  Qc2 {[%clk 0:00:18]} 56. Rc3 {[%clk 0:00:18]}  Qa2 {[%clk 0:00:17]} 57. Rd3+ {[%clk 0:00:16]}  Kc6 {[%clk 0:00:17]} 58. Rc3+ {[%clk 0:00:16]}  Kb6 {[%clk 0:00:17]} 59. Rb3 {[%clk 0:00:16]}  Kc6 {[%clk 0:00:14]} 60. Rc3+ {[%clk 0:00:16]}  Kd5 {[%clk 0:00:15]} 61. Rd3+ {[%clk 0:00:16]}  Ke4 {[%clk 0:00:15]} 62. Rc3 {[%clk 0:00:15]}  Qb2+ {[%clk 0:00:14]} 63. Kc4 {[%clk 0:00:13]}  Qb6 {[%clk 0:00:13]} 64. Rc2 {[%clk 0:00:13]}  Qc6+ {[%clk 0:00:11]} 65. Kb3 {[%clk 0:00:13]}  Qb5+ {[%clk 0:00:12]} 66. Kc3 {[%clk 0:00:13]}  Ke3 {[%clk 0:00:12]} 67. Rb2 {[%clk 0:00:10]}  Qc5+ {[%clk 0:00:11]} 68. Kb3 {[%clk 0:00:10]}  Kd3 {[%clk 0:00:12]} 69. Rb1 {[%clk 0:00:09]}  Qb5+ {[%clk 0:00:11]} 70. Ka2 {[%clk 0:00:09]}  Qa4+ {[%clk 0:00:10]} 71. Kb2 {[%clk 0:00:09]}  Kd2 {[%clk 0:00:09]} 72. Rh1 {[%clk 0:00:06]}  Qb4+ {[%clk 0:00:08]} 73. Ka1 {[%clk 0:00:05]}  Qc3+ {[%clk 0:00:08]} 74. Kb1 {[%clk 0:00:06]}  Qd3+ {[%clk 0:00:08]} 75. Ka2 {[%clk 0:00:05]}  Qd5+ {[%clk 0:00:08]} 76. Ka1 {[%clk 0:00:05]}  Qxh1+ {[%clk 0:00:08]} 0-1


[Site "https://www.chess.com"]

[Event "Titled Tuesday Blitz December 20 Early 2022"]
[White "alexrustemov"]
[Black "Salles, Louis"]
[BlackFideId "20641826"]
[WhiteElo "2891"]
[BlackElo "2287"]
[Result "1-0"]
[Round "08"]
[TimeControl "180+2"]
[Date "2022.12.20"]
[WhiteClock "0:01:03"]
[BlackClock "0:00:54"]

1. d4 {[%clk 0:03:00]}  Nf6 {[%clk 0:02:59]} 2. c4 {[%clk 0:02:56]}  g6 {[%clk 0:02:59]} 3. Nf3 {[%clk 0:02:56]}  Bg7 {[%clk 0:03:00]} 4. g3 {[%clk 0:02:57]}  d6 {[%clk 0:03:00]} 5. Bg2 {[%clk 0:02:57]}  O-O {[%clk 0:03:01]} 6. Nc3 {[%clk 0:02:57]}  c6 {[%clk 0:03:01]} 7. O-O {[%clk 0:02:57]}  a6 {[%clk 0:03:02]} 8. e4 {[%clk 0:02:52]}  Nfd7 {[%clk 0:02:55]} 9. a4 {[%clk 0:02:48]}  e5 {[%clk 0:02:52]} 10. Be3 {[%clk 0:02:42]}  a5 {[%clk 0:02:51]} 11. d5 {[%clk 0:02:26]}  cxd5 {[%clk 0:02:39]} 12. Nxd5 {[%clk 0:02:24]}  Na6 {[%clk 0:02:36]} 13. Qc2 {[%clk 0:02:21]}  Ndc5 {[%clk 0:02:33]} 14. Rfd1 {[%clk 0:02:17]}  Be6 {[%clk 0:02:33]} 15. b3 {[%clk 0:02:08]}  Bxd5 {[%clk 0:02:32]} 16. cxd5 {[%clk 0:02:01]}  Rc8 {[%clk 0:02:32]} 17. Qb1 {[%clk 0:01:56]}  h6 {[%clk 0:02:30]} 18. Nd2 {[%clk 0:01:56]}  f5 {[%clk 0:02:20]} 19. f3 {[%clk 0:01:51]}  f4 {[%clk 0:02:13]} 20. Bf2 {[%clk 0:01:51]}  g5 {[%clk 0:02:13]} 21. Bh3 {[%clk 0:01:47]}  Rc7 {[%clk 0:02:12]} 22. Bf5 {[%clk 0:01:46]}  Nb4 {[%clk 0:02:04]} 23. Nc4 {[%clk 0:01:44]}  Rcf7 {[%clk 0:02:04]} 24. g4 {[%clk 0:01:40]}  b6 {[%clk 0:02:02]} 25. Kg2 {[%clk 0:01:37]}  h5 {[%clk 0:01:56]} 26. h3 {[%clk 0:01:36]}  h4 {[%clk 0:01:56]} 27. Be6 {[%clk 0:01:35]}  Kh7 {[%clk 0:01:46]} 28. Bxf7 {[%clk 0:01:34]}  Rxf7 {[%clk 0:01:47]} 29. Be1 {[%clk 0:01:31]}  Bf8 {[%clk 0:01:37]} 30. Bxb4 {[%clk 0:01:24]}  axb4 {[%clk 0:01:38]} 31. a5 {[%clk 0:01:24]}  bxa5 {[%clk 0:01:38]} 32. Nxa5 {[%clk 0:01:24]}  Qb6 {[%clk 0:01:34]} 33. Nc6 {[%clk 0:01:23]}  Qb5 {[%clk 0:01:35]} 34. Qc2 {[%clk 0:01:23]}  Bg7 {[%clk 0:01:28]} 35. Ra5 {[%clk 0:01:22]}  Qb6 {[%clk 0:01:28]} 36. Rda1 {[%clk 0:01:21]}  Rc7 {[%clk 0:01:21]} 37. Ra7 {[%clk 0:01:20]}  Rxa7 {[%clk 0:01:17]} 38. Rxa7 {[%clk 0:01:19]}  Kg6 {[%clk 0:01:15]} 39. Qc4 {[%clk 0:01:18]}  Bf6 {[%clk 0:01:14]} 40. Qxb4 {[%clk 0:01:18]}  Qxb4 {[%clk 0:01:12]} 41. Nxb4 {[%clk 0:01:17]}  Nxb3 {[%clk 0:01:13]} 42. Ra6 {[%clk 0:01:15]}  Be7 {[%clk 0:01:12]} 43. Nc6 {[%clk 0:01:14]}  Bf8 {[%clk 0:01:12]} 44. Ra8 {[%clk 0:01:11]}  Kf7 {[%clk 0:01:12]} 45. Ra7+ {[%clk 0:01:10]}  Kg6 {[%clk 0:01:12]} 46. Nd8 {[%clk 0:01:10]}  Nc5 {[%clk 0:01:05]} 47. Ne6 {[%clk 0:01:09]}  Nxe6 {[%clk 0:00:57]} 48. dxe6 {[%clk 0:01:09]}  Bg7 {[%clk 0:00:58]} 49. Rf7 {[%clk 0:01:06]}  Bf6 {[%clk 0:00:58]} 50. Kf2 {[%clk 0:01:05]}  Bd8 {[%clk 0:00:57]} 51. Ke2 {[%clk 0:01:03]}  Bb6 {[%clk 0:00:57]} 52. Kd3 {[%clk 0:01:03]}  Bc5 {[%clk 0:00:54]} 53. Kc4 {[%clk 0:01:03]} 1-0


[Site "https://www.chess.com"]

[Event "Titled Tuesday Blitz December 20 Early 2022"]
[White "bardiya_Daneshvar"]
[Black "Andrei_Skvortsov"]
[WhiteElo "2903"]
[BlackElo "2717"]
[Result "1-0"]
[Round "08"]
[TimeControl "180+2"]
[Date "2022.12.20"]
[WhiteClock "0:00:06"]
[BlackClock "0:00:03"]

1. b3 {[%clk 0:03:00]}  e5 {[%clk 0:02:55]} 2. Bb2 {[%clk 0:03:01]}  Nc6 {[%clk 0:02:55]} 3. e3 {[%clk 0:03:01]}  Nge7 {[%clk 0:02:54]} 4. g3 {[%clk 0:02:49]}  d5 {[%clk 0:02:52]} 5. Bg2 {[%clk 0:02:50]}  Be6 {[%clk 0:02:52]} 6. Nf3 {[%clk 0:02:44]}  Ng6 {[%clk 0:02:52]} 7. h4 {[%clk 0:02:44]}  e4 {[%clk 0:02:49]} 8. Ng5 {[%clk 0:02:42]}  Bf5 {[%clk 0:02:45]} 9. Qh5 {[%clk 0:02:18]}  Qd7 {[%clk 0:02:40]} 10. Qe2 {[%clk 0:02:11]}  h6 {[%clk 0:02:37]} 11. Nh3 {[%clk 0:02:09]}  Bg4 {[%clk 0:02:34]} 12. Qf1 {[%clk 0:02:01]}  Nb4 {[%clk 0:02:04]} 13. Na3 {[%clk 0:01:58]}  O-O-O {[%clk 0:02:02]} 14. f3 {[%clk 0:01:55]}  exf3 {[%clk 0:02:01]} 15. Bxf3 {[%clk 0:01:56]}  Bf5 {[%clk 0:01:51]} 16. h5 {[%clk 0:01:49]}  Ne7 {[%clk 0:01:46]} 17. Nf4 {[%clk 0:01:48]}  Bxc2 {[%clk 0:01:36]} 18. Rc1 {[%clk 0:01:36]}  Qf5 {[%clk 0:01:30]} 19. Nxc2 {[%clk 0:01:22]}  Nxc2+ {[%clk 0:01:29]} 20. Kd1 {[%clk 0:01:23]}  Nb4 {[%clk 0:01:29]} 21. a3 {[%clk 0:01:18]}  Nbc6 {[%clk 0:01:27]} 22. b4 {[%clk 0:01:15]}  Ne5 {[%clk 0:01:05]} 23. Be2 {[%clk 0:01:03]}  Nc4 {[%clk 0:01:01]} 24. Bxc4 {[%clk 0:00:58]}  dxc4 {[%clk 0:01:02]} 25. Qxc4 {[%clk 0:00:54]}  Qg4+ {[%clk 0:01:01]} 26. Ne2 {[%clk 0:00:50]}  Qxc4 {[%clk 0:01:00]} 27. Rxc4 {[%clk 0:00:51]}  Nf5 {[%clk 0:00:56]} 28. Kc2 {[%clk 0:00:48]}  f6 {[%clk 0:00:51]} 29. Rf1 {[%clk 0:00:45]}  Nd6 {[%clk 0:00:49]} 30. Rg4 {[%clk 0:00:45]}  Rd7 {[%clk 0:00:49]} 31. Nd4 {[%clk 0:00:43]}  Nf7 {[%clk 0:00:47]} 32. Nf5 {[%clk 0:00:39]}  Ng5 {[%clk 0:00:47]} 33. Rc4 {[%clk 0:00:39]}  Kb8 {[%clk 0:00:46]} 34. g4 {[%clk 0:00:36]}  Bd6 {[%clk 0:00:45]} 35. b5 {[%clk 0:00:33]}  Rhd8 {[%clk 0:00:42]} 36. a4 {[%clk 0:00:32]}  Bf8 {[%clk 0:00:39]} 37. Bc3 {[%clk 0:00:32]}  b6 {[%clk 0:00:30]} 38. Nd4 {[%clk 0:00:31]}  Kb7 {[%clk 0:00:28]} 39. Nc6 {[%clk 0:00:29]}  Ra8 {[%clk 0:00:27]} 40. Rf5 {[%clk 0:00:22]}  a6 {[%clk 0:00:27]} 41. Kb3 {[%clk 0:00:17]}  Ne6 {[%clk 0:00:26]} 42. d4 {[%clk 0:00:16]}  Ng5 {[%clk 0:00:16]} 43. d5 {[%clk 0:00:14]}  axb5 {[%clk 0:00:13]} 44. axb5 {[%clk 0:00:15]}  Rf7 {[%clk 0:00:12]} 45. e4 {[%clk 0:00:12]}  Bc5 {[%clk 0:00:12]} 46. e5 {[%clk 0:00:10]}  fxe5 {[%clk 0:00:13]} 47. Bxe5 {[%clk 0:00:10]}  Rxf5 {[%clk 0:00:12]} 48. gxf5 {[%clk 0:00:11]}  Nf3 {[%clk 0:00:09]} 49. Bxg7 {[%clk 0:00:07]}  Nd2+ {[%clk 0:00:10]} 50. Kc3 {[%clk 0:00:08]}  Nxc4 {[%clk 0:00:10]} 51. Kxc4 {[%clk 0:00:09]}  Rg8 {[%clk 0:00:07]} 52. f6 {[%clk 0:00:08]}  Bf8 {[%clk 0:00:07]} 53. Nd8+ {[%clk 0:00:05]}  Kc8 {[%clk 0:00:07]} 54. Ne6 {[%clk 0:00:05]}  Bxg7 {[%clk 0:00:06]} 55. fxg7 {[%clk 0:00:04]}  Kd7 {[%clk 0:00:06]} 56. Kd4 {[%clk 0:00:05]}  Kd6 {[%clk 0:00:06]} 57. Ke4 {[%clk 0:00:05]}  c6 {[%clk 0:00:06]} 58. bxc6 {[%clk 0:00:05]}  b5 {[%clk 0:00:06]} 59. c7 {[%clk 0:00:05]}  b4 {[%clk 0:00:06]} 60. c8=Q {[%clk 0:00:05]}  Rxc8 {[%clk 0:00:05]} 61. Nf8 {[%clk 0:00:06]}  Rc4+ {[%clk 0:00:06]} 62. Kf5 {[%clk 0:00:05]}  b3 {[%clk 0:00:01]} 63. g8=Q {[%clk 0:00:06]}  Rc5 {[%clk 0:00:01]} 64. Qe6+ {[%clk 0:00:06]}  Kc7 {[%clk 0:00:02]} 65. Qd7+ {[%clk 0:00:06]}  Kb6 {[%clk 0:00:03]} 66. Ne6 {[%clk 0:00:06]}  Rc7 {[%clk 0:00:03]} 67. Qxc7+ {[%clk 0:00:06]} 1-0


[Site "https://www.chess.com"]

[Event "Titled Tuesday Blitz December 20 Early 2022"]
[White "deibittowers"]
[Black "Michels, Achim"]
[BlackFideId "4677889"]
[WhiteElo "2072"]
[BlackElo "2163"]
[Result "0-1"]
[Round "08"]
[TimeControl "180+2"]
[Date "2022.12.20"]
[WhiteClock "0:00:07"]
[BlackClock "0:00:13"]

1. e4 {[%clk 0:02:13]}  c5 {[%clk 0:02:57]} 2. Nf3 {[%clk 0:02:12]}  d6 {[%clk 0:02:52]} 3. d4 {[%clk 0:02:13]}  cxd4 {[%clk 0:02:53]} 4. Nxd4 {[%clk 0:02:13]}  Nf6 {[%clk 0:02:53]} 5. Nc3 {[%clk 0:02:14]}  a6 {[%clk 0:02:54]} 6. f4 {[%clk 0:02:14]}  Qc7 {[%clk 0:02:52]} 7. Nf3 {[%clk 0:02:13]}  Nbd7 {[%clk 0:02:47]} 8. Bd3 {[%clk 0:02:14]}  e6 {[%clk 0:02:48]} 9. O-O {[%clk 0:02:14]}  b5 {[%clk 0:02:48]} 10. a3 {[%clk 0:02:13]}  Bb7 {[%clk 0:02:49]} 11. Qe1 {[%clk 0:02:14]}  Be7 {[%clk 0:01:49]} 12. e5 {[%clk 0:02:11]}  dxe5 {[%clk 0:01:48]} 13. fxe5 {[%clk 0:01:51]}  Ng4 {[%clk 0:01:45]} 14. Qg3 {[%clk 0:01:36]}  Bxf3 {[%clk 0:01:18]} 15. gxf3 {[%clk 0:01:22]}  Ngxe5 {[%clk 0:01:14]} 16. Be4 {[%clk 0:01:16]}  O-O-O {[%clk 0:01:10]} 17. Bf4 {[%clk 0:01:06]}  g5 {[%clk 0:01:04]} 18. Be3 {[%clk 0:00:49]}  f5 {[%clk 0:01:01]} 19. Bd3 {[%clk 0:00:46]}  f4 {[%clk 0:01:00]} 20. Qh3 {[%clk 0:00:39]}  g4 {[%clk 0:00:36]} 21. Qh6 {[%clk 0:00:23]}  fxe3 {[%clk 0:00:29]} 22. f4 {[%clk 0:00:15]}  Ng6 {[%clk 0:00:19]} 23. Ne4 {[%clk 0:00:11]}  Nc5 {[%clk 0:00:17]} 24. a4 {[%clk 0:00:07]}  Nxe4 {[%clk 0:00:13]} 25. Bxe4 {[%clk 0:00:07]}  e2 {[%clk 0:00:13]} 0-1


[Site "https://www.chess.com"]

[Event "Titled Tuesday Blitz December 20 Early 2022"]
[White "dirk_da_player"]
[Black "D`Arruda, Ricardo D."]
[BlackFideId "100692"]
[WhiteElo "2339"]
[BlackElo "2271"]
[Result "1/2-1/2"]
[Round "08"]
[TimeControl "180+2"]
[Date "2022.12.20"]
[WhiteClock "0:00:03"]
[BlackClock "0:00:04"]

1. e4 {[%clk 0:02:59]}  c5 {[%clk 0:02:57]} 2. c3 {[%clk 0:02:59]}  e6 {[%clk 0:02:56]} 3. d4 {[%clk 0:02:59]}  d5 {[%clk 0:02:56]} 4. e5 {[%clk 0:02:59]}  Nc6 {[%clk 0:02:55]} 5. Nf3 {[%clk 0:02:59]}  cxd4 {[%clk 0:02:54]} 6. cxd4 {[%clk 0:02:59]}  Nge7 {[%clk 0:02:55]} 7. Nc3 {[%clk 0:02:43]}  Nf5 {[%clk 0:02:55]} 8. Be3 {[%clk 0:02:43]}  Be7 {[%clk 0:02:55]} 9. Bd3 {[%clk 0:02:42]}  O-O {[%clk 0:02:54]} 10. O-O {[%clk 0:02:39]}  Nxe3 {[%clk 0:02:46]} 11. fxe3 {[%clk 0:02:40]}  f5 {[%clk 0:02:46]} 12. exf6 {[%clk 0:02:35]}  Bxf6 {[%clk 0:02:46]} 13. Qc2 {[%clk 0:02:32]}  h6 {[%clk 0:02:41]} 14. Qe2 {[%clk 0:02:22]}  Bd7 {[%clk 0:02:38]} 15. Rad1 {[%clk 0:02:10]}  Qe7 {[%clk 0:01:59]} 16. Bb1 {[%clk 0:02:03]}  Rad8 {[%clk 0:01:55]} 17. Qd3 {[%clk 0:01:59]}  g5 {[%clk 0:01:54]} 18. e4 {[%clk 0:01:45]}  dxe4 {[%clk 0:01:51]} 19. Nxe4 {[%clk 0:01:45]}  Bh8 {[%clk 0:01:40]} 20. Nc5 {[%clk 0:01:03]}  Bc8 {[%clk 0:01:32]} 21. Qe4 {[%clk 0:00:59]}  Rf4 {[%clk 0:01:08]} 22. Qg6+ {[%clk 0:00:41]}  Qg7 {[%clk 0:01:05]} 23. Qxg7+ {[%clk 0:00:38]}  Bxg7 {[%clk 0:01:06]} 24. Nb3 {[%clk 0:00:37]}  Nxd4 {[%clk 0:00:44]} 25. Nfxd4 {[%clk 0:00:36]}  Bxd4+ {[%clk 0:00:44]} 26. Nxd4 {[%clk 0:00:25]}  Rdxd4 {[%clk 0:00:38]} 27. Rxd4 {[%clk 0:00:18]}  Rxd4 {[%clk 0:00:39]} 28. Bc2 {[%clk 0:00:18]}  Rd2 {[%clk 0:00:33]} 29. Rf2 {[%clk 0:00:17]}  Rxf2 {[%clk 0:00:32]} 30. Kxf2 {[%clk 0:00:18]}  e5 {[%clk 0:00:26]} 31. Ke3 {[%clk 0:00:19]}  Kf7 {[%clk 0:00:26]} 32. Ke4 {[%clk 0:00:16]}  Ke6 {[%clk 0:00:24]} 33. Bb3+ {[%clk 0:00:16]}  Kd6 {[%clk 0:00:24]} 34. g3 {[%clk 0:00:15]}  Bh3 {[%clk 0:00:23]} 35. a3 {[%clk 0:00:13]}  a5 {[%clk 0:00:23]} 36. Bc4 {[%clk 0:00:11]}  b6 {[%clk 0:00:24]} 37. Bb3 {[%clk 0:00:10]}  Be6 {[%clk 0:00:24]} 38. Bc2 {[%clk 0:00:06]}  Bg8 {[%clk 0:00:17]} 39. Ba4 {[%clk 0:00:05]}  Bh7+ {[%clk 0:00:17]} 40. Ke3 {[%clk 0:00:06]}  Kd5 {[%clk 0:00:16]} 41. Bb3+ {[%clk 0:00:06]}  Kc5 {[%clk 0:00:16]} 42. Be6 {[%clk 0:00:05]}  b5 {[%clk 0:00:16]} 43. h4 {[%clk 0:00:05]}  b4 {[%clk 0:00:16]} 44. axb4+ {[%clk 0:00:04]}  axb4 {[%clk 0:00:14]} 45. hxg5 {[%clk 0:00:05]}  hxg5 {[%clk 0:00:13]} 46. Bf7 {[%clk 0:00:05]}  Bf5 {[%clk 0:00:12]} 47. Bg8 {[%clk 0:00:05]}  Kd6 {[%clk 0:00:09]} 48. Bb3 {[%clk 0:00:04]}  Be6 {[%clk 0:00:10]} 49. Bc2 {[%clk 0:00:04]}  Bd5 {[%clk 0:00:10]} 50. Bd1 {[%clk 0:00:04]}  Ke6 {[%clk 0:00:10]} 51. Bc2 {[%clk 0:00:04]}  Kf6 {[%clk 0:00:11]} 52. Bd3 {[%clk 0:00:04]}  Be6 {[%clk 0:00:11]} 53. Be4 {[%clk 0:00:04]}  Bf5 {[%clk 0:00:10]} 54. Bf3 {[%clk 0:00:04]}  Ke7 {[%clk 0:00:11]} 55. Bd5 {[%clk 0:00:04]}  Kd6 {[%clk 0:00:11]} 56. Bb3 {[%clk 0:00:04]}  Kc5 {[%clk 0:00:12]} 57. Bf7 {[%clk 0:00:04]}  Bc2 {[%clk 0:00:06]} 58. Be6 {[%clk 0:00:04]}  Bg6 {[%clk 0:00:05]} 59. Bg8 {[%clk 0:00:03]}  Kd6 {[%clk 0:00:05]} 60. Bb3 {[%clk 0:00:03]}  Bf5 {[%clk 0:00:06]} 61. Bc4 {[%clk 0:00:03]}  Ke7 {[%clk 0:00:05]} 62. Bb3 {[%clk 0:00:03]}  Kf6 {[%clk 0:00:06]} 63. Bc4 {[%clk 0:00:03]}  Kg6 {[%clk 0:00:06]} 64. Be2 {[%clk 0:00:03]}  Bc2 {[%clk 0:00:02]} 65. Bf3 {[%clk 0:00:04]}  Kf5 {[%clk 0:00:03]} 66. Be2 {[%clk 0:00:04]}  Bb1 {[%clk 0:00:02]} 67. Bf3 {[%clk 0:00:04]}  Bc2 {[%clk 0:00:02]} 68. Be2 {[%clk 0:00:03]}  Bb1 {[%clk 0:00:03]} 69. Bf3 {[%clk 0:00:03]}  Bc2 {[%clk 0:00:04]} 1/2-1/2


[Site "https://www.chess.com"]